Workbook

Sheet Odcinek009
A1: a | B1: 0 | C1: 0 | D1: A | S1: A | T1: Długość | U1: 10 | V1: Sekundy | W1: MInuty | X1: Godziny | Y1: Dni | Z1: Lata
A2: b | B2: 1 | C2: 1 | D2: B | S2: B | T2: 1 | U2: =U$1^T2 -> 10 | V2: =U2/15 -> 0.6666666667 | W2: =V2/60 -> 0.01111111111 | X2: =W2/60 -> 0.0001851851852 | Y2: =X2/24 -> 7.716049383e-06 | Z2: =Y2/365 -> 2.113986132e-08
A3: c | B3: 2 | C3: 2 | D3: C | S3: C | T3: 2 | U3: =U$1^T3 -> 100 | V3: =U3/15 -> 6.666666667 | W3: =V3/60 -> 0.1111111111 | X3: 0.001851851852 | Y3: =X3/24 -> 7.716049383e-05 | Z3: =Y3/365 -> 2.113986132e-07
A4: d | B4: 3 | C4: 3 | D4: D | Q4: =(Q3-Q2)*60*60*24 -> 0 | S4: D | T4: 3 | U4: =U$1^T4 -> 1000 | V4: 66.66666667 | W4: 1.111111111 | X4: 0.01851851852 | Y4: =X4/24 -> 0.0007716049383 | Z4: 2.113986132e-06
A5: e | B5: 4 | C5: 4 | S5: AA | T5: 4 | U5: =U$1^T5 -> 10000 | V5: 666.6666667 | W5: 11.11111111 | X5: 0.1851851852 | Y5: =X5/24 -> 0.007716049383 | Z5: 2.113986132e-05
A6: f | B6: 5 | C6: 5 | S6: BA | T6: 5 | U6: =U$1^T6 -> 100000 | V6: 6666.666667 | W6: 111.1111111 | X6: 1.851851852 | Y6: =X6/24 -> 0.07716049383 | Z6: 0.0002113986132
A7: g | B7: 6 | C7: 6 | S7: CA | T7: 6 | U7: =U$1^T7 -> 1000000 | V7: 66666.66667 | W7: 1111.111111 | X7: 18.51851852 | Y7: =X7/24 -> 0.7716049383 | Z7: 0.002113986132
A8: h | B8: 7 | C8: 7 | S8: DA | T8: 7 | U8: =U$1^T8 -> 10000000 | V8: 666666.6667 | W8: 11111.11111 | X8: 185.1851852 | Y8: =X8/24 -> 7.716049383 | Z8: 0.02113986132
A9: i | B9: 8 | C9: 8 | S9: AB | T9: 8 | U9: =U$1^T9 -> 100000000 | V9: 6666666.667 | W9: 111111.1111 | X9: 1851.851852 | Y9: =X9/24 -> 77.16049383 | Z9: 0.2113986132
A10: j | B10: 9 | C10: 9 | S10: BB | T10: 9 | U10: =U$1^T10 -> 1000000000 | V10: 66666666.67 | W10: 1111111.111 | X10: 18518.51852 | Y10: =X10/24 -> 771.6049383 | Z10: 2.113986132
A11: k | B11: $ | S11: CB | T11: 10 | U11: =U$1^T11 -> 10000000000 | V11: 666666666.7 | W11: 11111111.11 | X11: 185185.1852 | Y11: =X11/24 -> 7716.049383 | Z11: 21.13986132
A12: l | B12: ! | S12: DB | T12: 11 | U12: =U$1^T12 -> 100000000000 | V12: 6666666667 | W12: 111111111.1 | X12: 1851851.852 | Y12: =X12/24 -> 77160.49383 | Z12: 211.3986132
A13: m | B13: # | S13: AC | T13: 12 | U13: =U$1^T13 -> 1000000000000 | V13: 6.666666667e+10 | W13: 1111111111 | X13: 18518518.52 | Y13: =X13/24 -> 771604.9383 | Z13: 2113.986132
A14: n | B14: % | S14: BC
A15: o | B15: ? | S15: CC
A16: p | S16: DC
A17: r | S17: AD
A18: s | S18: BD
A19: t | S19: CD
A20: u | S20: DD
A21: w | S21: AAA
A22: x | S22: BAA
A23: y | S23: CAA
A24: z | S24: DAA
A25: A | S25: ABA
A26: B | S26: BBA
A27: C | S27: CBA
A28: D | S28: DBA
A29: E | S29: ACA
A30: F | S30: BCA
A31: G | S31: DCA
A32: H
A33: I
A34: J
A35: K
A36: L
A37: M
A38: N
A39: O
A40: P
A41: R
A42: S
A43: T
A44: U
A45: W
A46: X
A47: Y
A48: Z
A49: 0
A50: 1
A51: 2
A52: 3
A53: 4
A54: 5
A55: 6
A56: 7
A57: 8
A58: 9

Sheet Ściąga
A1: Materiały Microsoft
A2: https://learn.microsoft.com/en-us/office/vba/language/reference/statements
A4: "Cells(W,K) =A" nadaje wartość A komórce o wierszu W i kolumnie K
A5: Cells(1,2)=3 oznacza przypisanie komórce B1 wartości 3
A7: „Cells(W,K).Select” zaznacza komórkę o wierszu W i kolumnie K
A8: Cells(4,5).Select oznacza zaznaczenie komórki E4
A10: “Range(Cells(W1,K1),Cells(W2,K2)).Select” zaznacza obszar którego rogami są komórki W1 K1 oraz W2 K2 (gdzie W i K to numery wierszy)
A11: Range(Cells(6,7),Cells(8,9)).Select oznacza zaznaczenie obszaru którego rogami są komórki G6 oraz I8
A13: „For Z=X to Y Next” powtarza zawarte pomiędzy liniami For oraz Next linie kodu zwiększając za każdym razem zmienną Z o jeden od wartości X aż do Y.
A14: Czyli np. For i=1 to 10 Cells(i,1)=i Next oznacza że i po kolei przyjmuje wartości 1,2,3,4 …. 10 wpisując te wartości w komórki A1,A2, A3, A4, ….A10
A16: "If Warunek Then Kod1 Else Kod2 End If" realizuje Kod 1 gdy postawiony Warunek jest spełniony a Kod 2 gdy nie
A17: Czyli np. If X>0 Then X=X+1 Else X=X-2 End If Sprawdza czy zmienna X jest większa od 0 i dodaje do niej 1 jeżeli jest a odejmuje 2 jeżeli nie jest
A19: „Left(Tekst,Ilość_Znaków)” zwraca Ilość_Znaków Tekstu od lewej strony
A20: Czyli np.: Tekst=Left(„Wesołych Świąt",8) przypisze zmiennej Tekst wartość „Wesołych”
A22: „Split (Tekst,”znak rozdzielający”)” dziali tekst na szereg mniejszych tekstów które w tekście źródłowym były rozdzielone wskazanym znakiem
A23: Czyli np. Wynik = Split(„Anna;Adam;Andrzej;Waldemar",”;”) spowoduje przypisanie tabeli Wynik poszczególnych imion a w szczególności Wynik(0)=”Anna”, Wynik(1)=”Adam”, Wynik(3)=”Andrzej”, Wynik(4)=”Waldemar”
A25: "Dim Tabela() As String" definiuje tabelę tekstów o nazwie "Tabela"
A27: “While Warunek Kod 1 Wend”
A28: Pętla która wykonuje Kod 1 dopóki spełniony jest Warunek
A29: Czyli np. X=0 While X<10 X=X+1 Wend
A30: Będzie dodawać do X 1 dopóki X nie osiągnie wartości 10
A32: „Application.ScreenUpdating = False”
A33: „Application.ScreenUpdating = True”
A34: Wyłączanie i włączanie aktualizacji wyświetlania, ważne gdy chcemy przyśpieszyć nasze makra
A36: „Application.Calculation = xlManual”
A37: “Application.Calculation = xlAutomatic”
A38: Przełączanie pomiędzy manualnym i automatycznym przeliczaniem komórek arkusza, ważne gdy chcemy przyśpieszyć nasze makra
A40: „Application.DisplayAlerts = False “
A41: “Application.DisplayAlerts = True”
A42: Wyłączanie I włączanie wyświetlania alertów, ważne gdy nie chcemy aby makro było przerywane przez wyświetlane komunikaty
A44: Wynik = InputBox("Treść zachęty")
A45: Wyświetla komunikat „Treść zachęty” wraz z polem do wpisania wartości przez użytkownika. Wpisana wartość jest przypisywana do zmiennej Wynik
